[Event "Titled Tuesday Blitz June 6 Late 2023"]
[White "Pulpan, Jakub"]
[Black "Andreikin, Dmitry"]
[WhiteFideId "302759"]
[BlackFideId "4158814"]
[WhiteElo "2484"]
[BlackElo "2736"]
[Result "0-1"]
[Round "5"]
[TimeControl "180+2"]
[Date "2023.06.07"]
[WhiteClock "0:00:03"]
[BlackClock "0:00:42"]
[Board "16"]

1. Nf3 {[%clk 0:02:53]}  b6 {[%clk 0:02:58]} 2. e4 {[%clk 0:02:50]}  Bb7 {[%clk 0:02:59]} 3. Nc3 {[%clk 0:02:50]}  e6 {[%clk 0:02:59]} 4. a3 {[%clk 0:02:43]}  c5 {[%clk 0:02:58]} 5. d4 {[%clk 0:02:35]}  cxd4 {[%clk 0:02:58]} 6. Nxd4 {[%clk 0:02:36]}  a6 {[%clk 0:02:56]} 7. g3 {[%clk 0:02:31]}  d6 {[%clk 0:02:51]} 8. Bg2 {[%clk 0:02:24]}  Nd7 {[%clk 0:02:51]} 9. O-O {[%clk 0:02:25]}  Rc8 {[%clk 0:02:51]} 10. Re1 {[%clk 0:02:24]}  Be7 {[%clk 0:02:45]} 11. Nd5 {[%clk 0:02:04]}  exd5 {[%clk 0:02:29]} 12. exd5 {[%clk 0:02:05]}  Kf8 {[%clk 0:02:26]} 13. Nf5 {[%clk 0:02:01]}  Ne5 {[%clk 0:02:21]} 14. Qd4 {[%clk 0:01:48]}  Bf6 {[%clk 0:02:14]} 15. Qb4 {[%clk 0:01:46]}  Rc5 {[%clk 0:02:05]} 16. Be3 {[%clk 0:01:40]}  a5 {[%clk 0:02:05]} 17. Qb3 {[%clk 0:01:39]}  Bc8 {[%clk 0:02:00]} 18. Bxc5 {[%clk 0:01:25]}  bxc5 {[%clk 0:02:01]} 19. Ne3 {[%clk 0:01:24]}  g6 {[%clk 0:01:59]} 20. Nc4 {[%clk 0:01:18]}  Nxc4 {[%clk 0:01:55]} 21. Qxc4 {[%clk 0:01:19]}  Kg7 {[%clk 0:01:54]} 22. c3 {[%clk 0:01:09]}  Ne7 {[%clk 0:01:53]} 23. b4 {[%clk 0:01:10]}  axb4 {[%clk 0:01:53]} 24. axb4 {[%clk 0:01:11]}  cxb4 {[%clk 0:01:53]} 25. Qxb4 {[%clk 0:01:12]}  Nf5 {[%clk 0:01:52]} 26. Ra8 {[%clk 0:01:03]}  Re8 {[%clk 0:01:48]} 27. Rxe8 {[%clk 0:00:55]}  Qxe8 {[%clk 0:01:49]} 28. Bf1 {[%clk 0:00:56]}  Qd7 {[%clk 0:01:44]} 29. Qb8 {[%clk 0:00:36]}  Ne7 {[%clk 0:01:25]} 30. Ra7 {[%clk 0:00:37]}  Qf5 {[%clk 0:01:13]} 31. Qxd6 {[%clk 0:00:26]}  Qxd5 {[%clk 0:01:04]} 32. Qxd5 {[%clk 0:00:18]}  Nxd5 {[%clk 0:01:05]} 33. Bc4 {[%clk 0:00:18]}  Be6 {[%clk 0:01:04]} 34. Ra5 {[%clk 0:00:13]}  Nxc3 {[%clk 0:01:01]} 35. Bxe6 {[%clk 0:00:13]}  fxe6 {[%clk 0:01:01]} 36. Ra7+ {[%clk 0:00:14]}  Kg8 {[%clk 0:01:00]} 37. Kg2 {[%clk 0:00:10]}  Nd5 {[%clk 0:01:01]} 38. h4 {[%clk 0:00:09]}  Be7 {[%clk 0:01:01]} 39. Rb7 {[%clk 0:00:07]}  h5 {[%clk 0:01:00]} 40. Ra7 {[%clk 0:00:08]}  Kf7 {[%clk 0:01:01]} 41. Rb7 {[%clk 0:00:08]}  Kf6 {[%clk 0:01:01]} 42. Ra7 {[%clk 0:00:08]}  Kf5 {[%clk 0:01:00]} 43. Ra4 {[%clk 0:00:07]}  Bc5 {[%clk 0:00:59]} 44. Rc4 {[%clk 0:00:08]}  Bb6 {[%clk 0:00:59]} 45. Ra4 {[%clk 0:00:07]}  e5 {[%clk 0:00:59]} 46. Ra8 {[%clk 0:00:05]}  Nf6 {[%clk 0:00:58]} 47. Rf8 {[%clk 0:00:05]}  Bc5 {[%clk 0:00:58]} 48. Rf7 {[%clk 0:00:05]}  Ke6 {[%clk 0:00:57]} 49. Rc7 {[%clk 0:00:04]}  Bd4 {[%clk 0:00:55]} 50. Rg7 {[%clk 0:00:04]}  Kf5 {[%clk 0:00:56]} 51. Rf7 {[%clk 0:00:05]}  e4 {[%clk 0:00:56]} 52. Rf8 {[%clk 0:00:03]}  Ke6 {[%clk 0:00:56]} 53. Rc8 {[%clk 0:00:01]}  Ng4 {[%clk 0:00:55]} 54. f3 {[%clk 0:00:01]}  Ne3+ {[%clk 0:00:54]} 55. Kf2 {[%clk 0:00:02]}  Nf5+ {[%clk 0:00:50]} 56. Kg2 {[%clk 0:00:01]}  e3 {[%clk 0:00:46]} 57. Re8+ {[%clk 0:00:01]}  Kd5 {[%clk 0:00:45]} 58. Rg8 {[%clk 0:00:01]}  e2 {[%clk 0:00:42]} 59. Re8 {[%clk 0:00:01]}  Be3 {[%clk 0:00:43]} 60. Rxe3 {[%clk 0:00:02]}  Nxe3+ {[%clk 0:00:42]} 61. Kf2 {[%clk 0:00:03]}  Nf5 {[%clk 0:00:42]} 62. Kxe2 {[%clk 0:00:03]}  Nxg3+ {[%clk 0:00:42]} 0-1


[Site "https://www.chess.com"]

[Event "Titled Tuesday Blitz June 6 Late 2023"]
[White "Wagner, Dennis"]
[Black "Kramnik, Vladimir"]
[WhiteFideId "24650684"]
[BlackFideId "4101588"]
[WhiteElo "2478"]
[BlackElo "2703"]
[Result "1/2-1/2"]
[Round "5"]
[TimeControl "180+2"]
[Date "2023.06.07"]
[WhiteClock "0:00:09"]
[BlackClock "0:00:10"]
[Board "18"]

1. d4 {[%clk 0:03:00]}  Nf6 {[%clk 0:02:57]} 2. c4 {[%clk 0:03:01]}  e6 {[%clk 0:02:57]} 3. Nf3 {[%clk 0:03:01]}  d5 {[%clk 0:02:57]} 4. g3 {[%clk 0:03:02]}  dxc4 {[%clk 0:02:55]} 5. Bg2 {[%clk 0:03:02]}  Nbd7 {[%clk 0:02:55]} 6. O-O {[%clk 0:03:00]}  Rb8 {[%clk 0:02:55]} 7. a4 {[%clk 0:02:55]}  a6 {[%clk 0:02:55]} 8. a5 {[%clk 0:02:51]}  Bd6 {[%clk 0:02:56]} 9. Nbd2 {[%clk 0:02:46]}  b5 {[%clk 0:02:56]} 10. axb6 {[%clk 0:02:46]}  Nxb6 {[%clk 0:02:57]} 11. Ne5 {[%clk 0:02:03]}  Bxe5 {[%clk 0:02:56]} 12. dxe5 {[%clk 0:02:04]}  Nfd5 {[%clk 0:02:48]} 13. Ne4 {[%clk 0:01:28]}  h6 {[%clk 0:02:39]} 14. Bd2 {[%clk 0:01:24]}  O-O {[%clk 0:02:36]} 15. Qc1 {[%clk 0:01:24]}  Qe7 {[%clk 0:02:10]} 16. Ra3 {[%clk 0:01:18]}  c3 {[%clk 0:01:59]} 17. Nxc3 {[%clk 0:00:55]}  Nc4 {[%clk 0:01:41]} 18. Ra2 {[%clk 0:00:56]}  Nb4 {[%clk 0:01:33]} 19. Ra4 {[%clk 0:00:49]}  Bd7 {[%clk 0:01:30]} 20. Ra1 {[%clk 0:00:35]}  Nxd2 {[%clk 0:01:30]} 21. Qxd2 {[%clk 0:00:34]}  Rfd8 {[%clk 0:01:31]} 22. Qf4 {[%clk 0:00:27]}  Bc6 {[%clk 0:01:20]} 23. Bxc6 {[%clk 0:00:24]}  Nxc6 {[%clk 0:01:20]} 24. Rxa6 {[%clk 0:00:25]}  Nd4 {[%clk 0:01:20]} 25. e3 {[%clk 0:00:15]}  Nb3 {[%clk 0:01:19]} 26. Ne4 {[%clk 0:00:14]}  Rb4 {[%clk 0:01:11]} 27. Qf3 {[%clk 0:00:03]}  Nc5 {[%clk 0:01:08]} 28. Nxc5 {[%clk 0:00:03]}  Qxc5 {[%clk 0:01:08]} 29. Rc6 {[%clk 0:00:03]}  Qxe5 {[%clk 0:01:07]} 30. Rfc1 {[%clk 0:00:03]}  Rxb2 {[%clk 0:00:42]} 31. Rxc7 {[%clk 0:00:04]}  Qf6 {[%clk 0:00:31]} 32. Qxf6 {[%clk 0:00:03]}  gxf6 {[%clk 0:00:31]} 33. Rc8 {[%clk 0:00:04]}  Rxc8 {[%clk 0:00:31]} 34. Rxc8+ {[%clk 0:00:05]}  Kg7 {[%clk 0:00:31]} 35. Kg2 {[%clk 0:00:05]}  f5 {[%clk 0:00:30]} 36. h4 {[%clk 0:00:05]}  Kg6 {[%clk 0:00:25]} 37. Kf3 {[%clk 0:00:05]}  Kg7 {[%clk 0:00:23]} 38. Rc4 {[%clk 0:00:05]}  Ra2 {[%clk 0:00:23]} 39. Rb4 {[%clk 0:00:05]}  Kg6 {[%clk 0:00:21]} 40. Rb5 {[%clk 0:00:05]}  Ra4 {[%clk 0:00:21]} 41. Rc5 {[%clk 0:00:06]}  h5 {[%clk 0:00:19]} 42. Rb5 {[%clk 0:00:06]}  f6 {[%clk 0:00:19]} 43. Rb8 {[%clk 0:00:05]}  e5 {[%clk 0:00:17]} 44. Rg8+ {[%clk 0:00:06]}  Kh7 {[%clk 0:00:17]} 45. Rf8 {[%clk 0:00:06]}  Kg7 {[%clk 0:00:17]} 46. Rb8 {[%clk 0:00:06]}  Ra2 {[%clk 0:00:17]} 47. Rb7+ {[%clk 0:00:06]}  Kg6 {[%clk 0:00:17]} 48. Rb8 {[%clk 0:00:06]}  Kg7 {[%clk 0:00:12]} 49. Rb7+ {[%clk 0:00:07]}  Kg6 {[%clk 0:00:12]} 50. Rb8 {[%clk 0:00:07]}  e4+ {[%clk 0:00:11]} 51. Kg2 {[%clk 0:00:07]}  Kg7 {[%clk 0:00:10]} 52. Rb7+ {[%clk 0:00:07]}  Kg6 {[%clk 0:00:10]} 53. Rc7 {[%clk 0:00:08]}  Rb2 {[%clk 0:00:10]} 54. Rd7 {[%clk 0:00:08]}  Ra2 {[%clk 0:00:10]} 55. Rc7 {[%clk 0:00:08]}  Rb2 {[%clk 0:00:10]} 56. Rd7 {[%clk 0:00:09]}  Ra2 {[%clk 0:00:10]} 57. Rc7 {[%clk 0:00:09]} 1/2-1/2


[Site "https://www.chess.com"]

[Event "Titled Tuesday Blitz June 6 Late 2023"]
[White "Terry, Renato"]
[Black "Rosen, Eric"]
[WhiteFideId "3803457"]
[BlackFideId "2032562"]
[WhiteElo "2575"]
[BlackElo "2331"]
[Result "1/2-1/2"]
[Round "5"]
[TimeControl "180+2"]
[Date "2023.06.07"]
[WhiteClock "0:00:04"]
[BlackClock "0:00:04"]
[Board "22"]

1. e4 {[%clk 0:02:52]}  c5 {[%clk 0:03:00]} 2. Nf3 {[%clk 0:02:52]}  Nc6 {[%clk 0:03:00]} 3. g3 {[%clk 0:02:52]}  g6 {[%clk 0:02:55]} 4. Bg2 {[%clk 0:02:52]}  Bg7 {[%clk 0:02:56]} 5. O-O {[%clk 0:02:52]}  Nf6 {[%clk 0:02:57]} 6. Re1 {[%clk 0:02:52]}  d6 {[%clk 0:02:57]} 7. c3 {[%clk 0:02:53]}  Bg4 {[%clk 0:02:53]} 8. h3 {[%clk 0:02:53]}  Bxf3 {[%clk 0:02:53]} 9. Bxf3 {[%clk 0:02:54]}  O-O {[%clk 0:02:54]} 10. Bg2 {[%clk 0:02:51]}  e5 {[%clk 0:02:41]} 11. d3 {[%clk 0:02:45]}  Rb8 {[%clk 0:02:36]} 12. a4 {[%clk 0:02:46]}  a6 {[%clk 0:02:36]} 13. f4 {[%clk 0:02:40]}  exf4 {[%clk 0:02:30]} 14. gxf4 {[%clk 0:02:38]}  Nh5 {[%clk 0:02:30]} 15. f5 {[%clk 0:02:24]}  b5 {[%clk 0:02:28]} 16. axb5 {[%clk 0:02:23]}  axb5 {[%clk 0:02:28]} 17. Nd2 {[%clk 0:01:45]}  Ne5 {[%clk 0:02:27]} 18. Nf3 {[%clk 0:01:44]}  b4 {[%clk 0:02:13]} 19. Nxe5 {[%clk 0:01:38]}  Bxe5 {[%clk 0:02:10]} 20. d4 {[%clk 0:01:37]}  bxc3 {[%clk 0:01:59]} 21. bxc3 {[%clk 0:01:34]}  cxd4 {[%clk 0:01:44]} 22. cxd4 {[%clk 0:01:35]}  Qb6 {[%clk 0:01:44]} 23. Be3 {[%clk 0:01:33]}  Bf4 {[%clk 0:01:45]} 24. Bf2 {[%clk 0:01:19]}  Bg3 {[%clk 0:01:32]} 25. Bxg3 {[%clk 0:01:18]}  Nxg3 {[%clk 0:01:33]} 26. Qd3 {[%clk 0:01:09]}  Qb3 {[%clk 0:00:57]} 27. Ra3 {[%clk 0:00:36]}  Qxd3 {[%clk 0:00:57]} 28. Rxd3 {[%clk 0:00:36]}  Nh5 {[%clk 0:00:58]} 29. Rf1 {[%clk 0:00:36]}  Rb2 {[%clk 0:00:32]} 30. h4 {[%clk 0:00:34]}  Rc8 {[%clk 0:00:26]} 31. fxg6 {[%clk 0:00:28]}  hxg6 {[%clk 0:00:22]} 32. Rdf3 {[%clk 0:00:27]}  Rcc2 {[%clk 0:00:13]} 33. Bh3 {[%clk 0:00:27]}  Rh2 {[%clk 0:00:12]} 34. e5 {[%clk 0:00:16]}  dxe5 {[%clk 0:00:09]} 35. dxe5 {[%clk 0:00:17]}  Nf4 {[%clk 0:00:06]} 36. Rxf4 {[%clk 0:00:16]}  Rxh3 {[%clk 0:00:06]} 37. Rd1 {[%clk 0:00:05]}  Rg3+ {[%clk 0:00:06]} 38. Kf1 {[%clk 0:00:05]}  Rh3 {[%clk 0:00:06]} 39. Kg1 {[%clk 0:00:05]}  Rg3+ {[%clk 0:00:07]} 40. Kf1 {[%clk 0:00:05]}  Rh3 {[%clk 0:00:04]} 41. Rd8+ {[%clk 0:00:04]}  Kg7 {[%clk 0:00:04]} 42. Kg1 {[%clk 0:00:05]}  Rg3+ {[%clk 0:00:04]} 43. Kf1 {[%clk 0:00:05]}  Ra3 {[%clk 0:00:03]} 44. Rd1 {[%clk 0:00:04]}  Rh3 {[%clk 0:00:03]} 45. Kg1 {[%clk 0:00:03]}  Rg3+ {[%clk 0:00:02]} 46. Kf1 {[%clk 0:00:04]}  Rh3 {[%clk 0:00:03]} 47. Kg1 {[%clk 0:00:04]}  Rg3+ {[%clk 0:00:03]} 48. Kf1 {[%clk 0:00:04]}  Rh3 {[%clk 0:00:04]} 1/2-1/2


[Site "https://www.chess.com"]

[Event "Titled Tuesday Blitz June 6 Late 2023"]
[White "Jaracz, Pawel"]
[Black "Elsa167"]
[WhiteFideId "1102222"]
[WhiteElo "2454"]
[BlackElo "2885"]
[Result "1/2-1/2"]
[Round "5"]
[TimeControl "180+2"]
[Date "2023.06.07"]
[WhiteClock "0:00:05"]
[BlackClock "0:00:04"]
[Board "24"]

1. e4 {[%clk 0:03:00]}  e6 {[%clk 0:03:00]} 2. d4 {[%clk 0:03:00]}  d5 {[%clk 0:03:01]} 3. Nd2 {[%clk 0:03:00]}  c5 {[%clk 0:02:55]} 4. exd5 {[%clk 0:02:59]}  Qxd5 {[%clk 0:02:55]} 5. Ngf3 {[%clk 0:02:59]}  Nf6 {[%clk 0:02:56]} 6. Bc4 {[%clk 0:02:57]}  Qd8 {[%clk 0:02:54]} 7. O-O {[%clk 0:02:52]}  cxd4 {[%clk 0:02:54]} 8. Nb3 {[%clk 0:02:52]}  Nc6 {[%clk 0:02:54]} 9. Nbxd4 {[%clk 0:02:49]}  Nxd4 {[%clk 0:02:55]} 10. Nxd4 {[%clk 0:02:50]}  a6 {[%clk 0:02:53]} 11. c3 {[%clk 0:02:47]}  Bc5 {[%clk 0:02:51]} 12. Be3 {[%clk 0:02:28]}  Qc7 {[%clk 0:02:51]} 13. Bb3 {[%clk 0:02:16]}  e5 {[%clk 0:02:43]} 14. Nc2 {[%clk 0:02:12]}  Bg4 {[%clk 0:02:36]} 15. Qe1 {[%clk 0:01:54]}  O-O {[%clk 0:02:35]} 16. Bxc5 {[%clk 0:01:52]}  Qxc5 {[%clk 0:02:36]} 17. Qe3 {[%clk 0:01:46]}  Qc7 {[%clk 0:02:23]} 18. Rfe1 {[%clk 0:01:43]}  Rfe8 {[%clk 0:02:23]} 19. Qg3 {[%clk 0:01:39]}  Rad8 {[%clk 0:02:20]} 20. h3 {[%clk 0:01:35]}  Bf5 {[%clk 0:02:15]} 21. Ne3 {[%clk 0:01:35]}  Bg6 {[%clk 0:02:15]} 22. Nc4 {[%clk 0:01:29]}  Ne4 {[%clk 0:02:13]} 23. Qe3 {[%clk 0:01:28]}  b5 {[%clk 0:02:06]} 24. Nb6 {[%clk 0:01:20]}  Nf6 {[%clk 0:02:02]} 25. Rad1 {[%clk 0:01:17]}  Be4 {[%clk 0:01:37]} 26. a4 {[%clk 0:01:01]}  Bb7 {[%clk 0:01:31]} 27. a5 {[%clk 0:00:50]}  Qc6 {[%clk 0:01:30]} 28. f3 {[%clk 0:00:50]}  Rxd1 {[%clk 0:01:15]} 29. Rxd1 {[%clk 0:00:49]}  h6 {[%clk 0:01:13]} 30. Nd5 {[%clk 0:00:40]}  Nxd5 {[%clk 0:01:05]} 31. Bxd5 {[%clk 0:00:33]}  Qc7 {[%clk 0:01:05]} 32. Bxb7 {[%clk 0:00:31]}  Qxb7 {[%clk 0:01:06]} 33. Qc5 {[%clk 0:00:28]}  e4 {[%clk 0:01:04]} 34. Re1 {[%clk 0:00:28]}  f5 {[%clk 0:00:45]} 35. Qxf5 {[%clk 0:00:26]}  e3 {[%clk 0:00:45]} 36. Qd3 {[%clk 0:00:23]}  Qe7 {[%clk 0:00:45]} 37. Re2 {[%clk 0:00:22]}  Kh8 {[%clk 0:00:44]} 38. f4 {[%clk 0:00:20]}  Qc5 {[%clk 0:00:37]} 39. Qd4 {[%clk 0:00:19]}  Qe7 {[%clk 0:00:34]} 40. b4 {[%clk 0:00:16]}  Qe6 {[%clk 0:00:32]} 41. f5 {[%clk 0:00:16]}  Qe7 {[%clk 0:00:31]} 42. Kh1 {[%clk 0:00:08]}  Qg5 {[%clk 0:00:30]} 43. g4 {[%clk 0:00:08]}  h5 {[%clk 0:00:27]} 44. Kg2 {[%clk 0:00:09]}  h4 {[%clk 0:00:19]} 45. Kf3 {[%clk 0:00:09]}  Qe7 {[%clk 0:00:13]} 46. Rxe3 {[%clk 0:00:07]}  Qb7+ {[%clk 0:00:14]} 47. Kf2 {[%clk 0:00:07]}  Rf8 {[%clk 0:00:13]} 48. Qe4 {[%clk 0:00:06]}  Qc7 {[%clk 0:00:12]} 49. Qe5 {[%clk 0:00:06]}  Qc6 {[%clk 0:00:12]} 50. Qe4 {[%clk 0:00:06]}  Qd6 {[%clk 0:00:13]} 51. Qe5 {[%clk 0:00:05]}  Qd2+ {[%clk 0:00:13]} 52. Re2 {[%clk 0:00:06]}  Qd3 {[%clk 0:00:13]} 53. Qe3 {[%clk 0:00:05]}  Qd5 {[%clk 0:00:13]} 54. Qg5 {[%clk 0:00:05]}  Qh1 {[%clk 0:00:08]} 55. Qxh4+ {[%clk 0:00:05]}  Kg8 {[%clk 0:00:08]} 56. Qg3 {[%clk 0:00:06]}  Rd8 {[%clk 0:00:08]} 57. Qe3 {[%clk 0:00:04]}  Qh2+ {[%clk 0:00:08]} 58. Kf1 {[%clk 0:00:03]}  Rd1+ {[%clk 0:00:07]} 59. Re1 {[%clk 0:00:03]}  Qh1+ {[%clk 0:00:07]} 60. Kf2 {[%clk 0:00:04]}  Qh2+ {[%clk 0:00:08]} 61. Kf1 {[%clk 0:00:04]}  Qh1+ {[%clk 0:00:07]} 62. Kf2 {[%clk 0:00:04]}  Qh2+ {[%clk 0:00:04]} 63. Kf1 {[%clk 0:00:05]} 1/2-1/2


[Site "https://www.chess.com"]

[Event "Titled Tuesday Blitz June 6 Late 2023"]
[White "Rustemov, Alexander"]
[Black "Blohberger, Felix"]
[WhiteFideId "4119002"]
[BlackFideId "1632051"]
[WhiteElo "2853"]
[BlackElo "2435"]
[Result "0-1"]
[Round "5"]
[TimeControl "180+2"]
[Date "2023.06.07"]
[WhiteClock "0:00:05"]
[BlackClock "0:00:09"]
[Board "27"]

1. d4 {[%clk 0:03:00]}  Nf6 {[%clk 0:02:59]} 2. c4 {[%clk 0:03:01]}  e6 {[%clk 0:02:59]} 3. Nf3 {[%clk 0:03:01]}  d5 {[%clk 0:02:58]} 4. Nc3 {[%clk 0:03:01]}  Bb4 {[%clk 0:02:59]} 5. Bg5 {[%clk 0:03:01]}  h6 {[%clk 0:02:58]} 6. Bxf6 {[%clk 0:03:02]}  Qxf6 {[%clk 0:02:58]} 7. e3 {[%clk 0:03:02]}  c5 {[%clk 0:02:57]} 8. cxd5 {[%clk 0:03:00]}  exd5 {[%clk 0:02:57]} 9. Bb5+ {[%clk 0:03:00]}  Bd7 {[%clk 0:02:56]} 10. O-O {[%clk 0:02:56]}  Bxc3 {[%clk 0:02:46]} 11. Bxd7+ {[%clk 0:02:55]}  Nxd7 {[%clk 0:02:47]} 12. bxc3 {[%clk 0:02:55]}  O-O {[%clk 0:02:46]} 13. Qb3 {[%clk 0:02:55]}  Qc6 {[%clk 0:02:37]} 14. a4 {[%clk 0:02:53]}  c4 {[%clk 0:02:34]} 15. Qb5 {[%clk 0:02:50]}  a6 {[%clk 0:02:27]} 16. Qb4 {[%clk 0:02:43]}  b6 {[%clk 0:02:01]} 17. Rfb1 {[%clk 0:02:41]}  Rfe8 {[%clk 0:01:59]} 18. h3 {[%clk 0:02:39]}  Re6 {[%clk 0:01:58]} 19. Ra2 {[%clk 0:02:36]}  Rae8 {[%clk 0:01:53]} 20. Rab2 {[%clk 0:02:34]}  Rg6 {[%clk 0:01:37]} 21. g3 {[%clk 0:02:03]}  Qf6 {[%clk 0:01:28]} 22. Kg2 {[%clk 0:02:02]}  Qe6 {[%clk 0:01:18]} 23. Nd2 {[%clk 0:01:47]}  h5 {[%clk 0:01:02]} 24. h4 {[%clk 0:01:37]}  Qg4 {[%clk 0:00:55]} 25. Re1 {[%clk 0:01:26]}  Qxh4 {[%clk 0:00:52]} 26. Rh1 {[%clk 0:01:01]}  Qg4 {[%clk 0:00:51]} 27. Nf3 {[%clk 0:00:52]}  Rxe3 {[%clk 0:00:50]} 28. Nh4 {[%clk 0:00:41]}  Rxg3+ {[%clk 0:00:29]} 29. fxg3 {[%clk 0:00:41]}  Qxg3+ {[%clk 0:00:27]} 30. Kf1 {[%clk 0:00:42]}  Rf6+ {[%clk 0:00:06]} 31. Ke2 {[%clk 0:00:42]}  Rf2+ {[%clk 0:00:01]} 32. Kd1 {[%clk 0:00:43]}  Qd3+ {[%clk 0:00:01]} 33. Kc1 {[%clk 0:00:41]}  Qe3+ {[%clk 0:00:02]} 34. Kb1 {[%clk 0:00:41]}  Qe4+ {[%clk 0:00:02]} 35. Ka2 {[%clk 0:00:37]}  Rxb2+ {[%clk 0:00:03]} 36. Kxb2 {[%clk 0:00:32]}  Qxh1 {[%clk 0:00:04]} 37. Qe7 {[%clk 0:00:32]}  Qh2+ {[%clk 0:00:03]} 38. Kb1 {[%clk 0:00:29]}  Nf6 {[%clk 0:00:04]} 39. Qe1 {[%clk 0:00:16]}  g6 {[%clk 0:00:03]} 40. Nf3 {[%clk 0:00:16]}  Qg2 {[%clk 0:00:03]} 41. Ne5 {[%clk 0:00:15]}  Qe4+ {[%clk 0:00:03]} 42. Qxe4 {[%clk 0:00:13]}  Nxe4 {[%clk 0:00:04]} 43. Kc2 {[%clk 0:00:13]}  h4 {[%clk 0:00:05]} 44. Nf3 {[%clk 0:00:08]}  h3 {[%clk 0:00:05]} 45. a5 {[%clk 0:00:07]}  bxa5 {[%clk 0:00:05]} 46. Kd1 {[%clk 0:00:04]}  Nxc3+ {[%clk 0:00:04]} 47. Ke1 {[%clk 0:00:05]}  Ne4 {[%clk 0:00:04]} 48. Kf1 {[%clk 0:00:05]}  a4 {[%clk 0:00:05]} 49. Ne1 {[%clk 0:00:05]}  a3 {[%clk 0:00:05]} 50. Nc2 {[%clk 0:00:06]}  a2 {[%clk 0:00:06]} 51. Kg1 {[%clk 0:00:06]}  g5 {[%clk 0:00:06]} 52. Kh2 {[%clk 0:00:07]}  g4 {[%clk 0:00:07]} 53. Na1 {[%clk 0:00:07]}  Kg7 {[%clk 0:00:07]} 54. Nc2 {[%clk 0:00:07]}  Kg6 {[%clk 0:00:08]} 55. Na1 {[%clk 0:00:08]}  Kg5 {[%clk 0:00:08]} 56. Nc2 {[%clk 0:00:09]}  Kh4 {[%clk 0:00:09]} 57. Ne3 {[%clk 0:00:08]}  g3+ {[%clk 0:00:08]} 58. Kh1 {[%clk 0:00:05]}  a1=Q+ {[%clk 0:00:09]} 0-1


[Site "https://www.chess.com"]

[Event "Titled Tuesday Blitz June 6 Late 2023"]
[White "Schmakel, Sam"]
[Black "Papp, Levente"]
[WhiteFideId "2039311"]
[BlackFideId "751243"]
[WhiteElo "2356"]
[BlackElo "2380"]
[Result "1-0"]
[Round "5"]
[TimeControl "180+2"]
[Date "2023.06.07"]
[WhiteClock "0:00:11"]
[BlackClock "0:00:01"]
[Board "29"]

1. d4 {[%clk 0:03:00]}  e6 {[%clk 0:03:00]} 2. c4 {[%clk 0:02:57]}  b6 {[%clk 0:03:00]} 3. e4 {[%clk 0:02:55]}  Bb7 {[%clk 0:02:59]} 4. Nc3 {[%clk 0:02:56]}  Bb4 {[%clk 0:02:59]} 5. Bd3 {[%clk 0:02:56]}  f5 {[%clk 0:02:56]} 6. Qh5+ {[%clk 0:02:37]}  g6 {[%clk 0:02:55]} 7. Qe2 {[%clk 0:02:37]}  Nf6 {[%clk 0:02:47]} 8. Bg5 {[%clk 0:02:11]}  fxe4 {[%clk 0:02:33]} 9. Bxf6 {[%clk 0:02:11]}  Qxf6 {[%clk 0:02:22]} 10. Bxe4 {[%clk 0:02:10]}  Bxe4 {[%clk 0:02:16]} 11. Qxe4 {[%clk 0:02:11]}  Nc6 {[%clk 0:02:14]} 12. Nf3 {[%clk 0:02:08]}  O-O {[%clk 0:02:12]} 13. O-O {[%clk 0:02:09]}  Bxc3 {[%clk 0:02:06]} 14. bxc3 {[%clk 0:02:09]}  Na5 {[%clk 0:01:59]} 15. c5 {[%clk 0:01:48]}  bxc5 {[%clk 0:01:24]} 16. dxc5 {[%clk 0:01:49]}  Qxc3 {[%clk 0:01:24]} 17. Ne5 {[%clk 0:01:36]}  Rad8 {[%clk 0:01:09]} 18. Rad1 {[%clk 0:01:18]}  d5 {[%clk 0:01:03]} 19. cxd6 {[%clk 0:01:17]}  cxd6 {[%clk 0:01:04]} 20. Ng4 {[%clk 0:01:17]}  Qc4 {[%clk 0:00:59]} 21. Rd4 {[%clk 0:01:17]}  Qc8 {[%clk 0:00:47]} 22. Ra4 {[%clk 0:01:02]}  Nc6 {[%clk 0:00:39]} 23. Rc1 {[%clk 0:01:02]}  d5 {[%clk 0:00:39]} 24. Qe3 {[%clk 0:00:57]}  Qd7 {[%clk 0:00:32]} 25. h4 {[%clk 0:00:43]}  Rc8 {[%clk 0:00:21]} 26. Ra6 {[%clk 0:00:29]}  h5 {[%clk 0:00:17]} 27. Rcxc6 {[%clk 0:00:23]}  Rxc6 {[%clk 0:00:14]} 28. Ne5 {[%clk 0:00:23]}  d4 {[%clk 0:00:04]} 29. Qg5 {[%clk 0:00:16]}  Qg7 {[%clk 0:00:02]} 30. Rxc6 {[%clk 0:00:15]}  Rf5 {[%clk 0:00:01]} 31. Rc8+ {[%clk 0:00:15]}  Kh7 {[%clk 0:00:01]} 32. Qd8 {[%clk 0:00:11]}  Rxe5 {[%clk 0:00:01]} 33. Rc1 {[%clk 0:00:11]} 1-0


[Site "https://www.chess.com"]